lending/lending_fUSD_20240807
["ID","MTS","AMOUNT","RATE_DAILY","PERIOD"]
[334413833,1723061437933,-1000.0,0.00018233,2]
[334413834,1723061437942,-124.15252044,0.00018275,2]
[334413835,1723061437954,-1678.85747956,0.00018275,2]
[334413836,1723061437963,-571.58,0.00018462,2]
[334413837,1723061437972,-150.0,0.00018477,2]
[334413838,1723061437982,-250.0,0.00018547,2]
[334413839,1723061437991,-719.68870544,0.00018547,2]
[334413840,1723061438001,-11500.79478606,0.0001857,2]
[334413841,1723061438012,-810.95000243,0.0001857,2]
[334413842,1723061438023,-569.89984797,0.0001857,2]
[334413843,1723061438035,-6445.00021091,0.0001857,2]
[334413844,1723061438047,-4573.35515263,0.0001857,2]
[334413845,1723061438056,-1972.17021124,0.000186,2]
[334413846,1723061438067,-541.73,0.00018771,2]
[334413847,1723061438077,-361.45,0.00018873,2]
[334413848,1723061438086,-676.06380019,0.00019599,2]
[334413849,1723061438096,-172.57325348,0.00019725,2]
[334413850,1723061438105,-180.01,0.0001974,2]
[334413851,1723061438114,-1283.81002744,0.0002,2]
[334413852,1723061438124,-625.8586866,0.0002,2]
[334413853,1723061438133,-591.4331107,0.0002,2]
[334413854,1723061438145,-1520.39891193,0.0002,2]
[334413855,1723061438156,-563.31326908,0.0002,2]
[334413856,1723061438167,-582.8525028,0.0002,2]
[334413867,1723061442264,-568.59804658,0.00019177,2]
[334413868,1723061442275,-724.311689,0.000199,2]
[334413869,1723061442288,-437.93622442,0.0002,2]
[334413872,1723061442478,-1411.2,0.0002,2]
[334413873,1723061442490,-12723.22119831,0.0002,2]
[334413874,1723061442500,-6291.69894213,0.0002,2]
[334413875,1723061442509,-155.0,0.0002,2]
[334413876,1723061442519,-211.51884006,0.00020191,2]
[334413877,1723061442528,-2024.14563285,0.000202,2]
[334413878,1723061442540,-388.77,0.00020447,2]
[334413880,1723061442549,-1000.0,0.00020513,2]
[334413882,1723061442559,-891.93599806,0.00020588,2]
[334413884,1723061442567,-737.40257968,0.00020831,2]
[334413886,1723061442577,-737.40257968,0.00020831,2]
[334413888,1723061442586,-229.85970229,0.00020899,2]
[334413889,1723061442596,-3118.97189145,0.00020999,2]
[334413890,1723061442605,-225.65001596,0.00021,2]
[334413891,1723061442616,-823.84035329,0.000211,2]
[334413892,1723061442626,-947.82815422,0.000211,2]
[334413893,1723061442635,-361.45,0.00021137,2]
[334413895,1723061442645,-6061.0,0.000216,2]
[334413897,1723061442654,-320.2,0.00021918,2]
[334413899,1723061442664,-658.91,0.00021918,2]
[334413901,1723061442674,-150.0,0.00021918,2]
[334413904,1723061442683,-1000.0,0.00022466,2]
[334413906,1723061442692,-150.0,0.00022488,4]
[334413907,1723061442702,-150.0,0.00022495,2]
[334413909,1723061442711,-1000.0,0.00022792,2]
[334413910,1723061442721,-150.0,0.00023071,2]
[334413911,1723061442732,-180.0,0.00023205,2]
[334413912,1723061442743,-150.0,0.00023321,4]
[334413913,1723061442753,-361.45,0.00023401,2]
[334413915,1723061442767,-3706.87294578,0.0002354,2]
[334413916,1723061442777,-500.0,0.0002354,2]
[334413917,1723061442790,-500.0,0.0002354,2]
[334413918,1723061442799,-500.0,0.0002354,2]
[334413919,1723061442810,-500.0,0.0002354,2]
[334413920,1723061442819,-500.0,0.0002354,2]
[334413921,1723061442828,-500.0,0.0002354,2]
[334413922,1723061442839,-500.0,0.0002354,2]
[334413923,1723061442849,-500.0,0.0002354,2]
[334413924,1723061442859,-500.0,0.0002354,2]
[334413925,1723061442869,-500.0,0.0002354,2]
[334413926,1723061442878,-500.0,0.0002354,2]
[334413927,1723061442888,-500.0,0.0002354,2]
[334413928,1723061442897,-500.0,0.0002354,2]
[334413929,1723061442907,-500.0,0.0002354,2]
[334413930,1723061442919,-500.0,0.0002354,2]
[334413931,1723061442932,-500.0,0.0002354,2]
[334413932,1723061442941,-500.0,0.0002354,2]
[334413933,1723061442951,-500.0,0.0002354,2]
[334413934,1723061442959,-500.0,0.0002354,2]
[334413935,1723061442969,-500.0,0.0002354,2]
[334413936,1723061442979,-500.0,0.0002354,2]
[334413937,1723061442988,-500.0,0.0002354,2]
[334413938,1723061442998,-500.0,0.0002354,2]
[334413939,1723061443007,-500.0,0.0002354,2]
[334413940,1723061443017,-500.0,0.0002354,2]
[334413941,1723061443026,-500.0,0.0002354,2]
[334413942,1723061443038,-500.0,0.0002354,2]
[334413943,1723061443048,-500.0,0.0002354,2]
[334413944,1723061443058,-500.0,0.0002354,2]
[334413945,1723061443068,-500.0,0.0002354,2]
[334413946,1723061443078,-500.0,0.0002354,2]
[334413947,1723061443087,-500.0,0.0002354,2]
[334413948,1723061443097,-500.0,0.0002354,2]
[334413949,1723061443107,-500.0,0.0002354,2]
[334413950,1723061443117,-500.0,0.0002354,2]
[334413951,1723061443126,-500.0,0.0002354,2]
[334413952,1723061443136,-500.0,0.0002354,2]
[334413953,1723061443145,-500.0,0.0002354,2]
[334413954,1723061443155,-500.0,0.0002354,2]
[334413955,1723061443164,-500.0,0.0002354,2]
[334413956,1723061443173,-500.0,0.0002354,2]
[334413957,1723061443183,-500.0,0.0002354,2]
[334413958,1723061443192,-500.0,0.0002354,2]
[334413959,1723061443202,-500.0,0.0002354,2]
[334413960,1723061443211,-500.0,0.0002354,2]
[334413962,1723061443220,-500.0,0.0002354,2]
[334413964,1723061443230,-500.0,0.0002354,2]
[334413965,1723061443239,-500.0,0.0002354,2]
[334413966,1723061443248,-500.0,0.0002354,2]
[334413967,1723061443258,-150.0,0.00023648,2]
[334413968,1723061443267,-203.0,0.0002414,2]
[334413969,1723061443276,-150.0,0.00024153,4]
[334413970,1723061443288,-150.0,0.00024225,2]
[334413971,1723061443298,-935.0,0.0002425,2]
[334413972,1723061443307,-1224.7986,0.00024399,2]
[334413973,1723061443316,-1500.0,0.000244,2]
[334413974,1723061443325,-188.96310654,0.000244,2]
[334413975,1723061443334,-188.96310647,0.00024471,2]
[334413976,1723061443343,-500.0,0.00024499,2]
[334413977,1723061443354,-500.0,0.00024499,2]
[334413978,1723061443363,-500.0,0.00024499,2]
[334413979,1723061443373,-500.0,0.00024499,2]
[334413980,1723061443382,-500.0,0.00024499,2]
[334413981,1723061443391,-610.57575548,0.00024499,2]
[334413982,1723061443400,-500.0,0.00024499,2]
[334413983,1723061443410,-500.0,0.00024499,2]
[334413984,1723061443419,-386.71197829,0.00024499,2]
[334413985,1723061443428,-500.0,0.00024499,5]
[334413986,1723061443438,-549.80031187,0.00024499,2]
[334413987,1723061443447,-626.22102015,0.00024499,2]
[334413988,1723061443457,-500.0,0.00024499,2]
[334413989,1723061443466,-124072.51,0.000245,5]
[334413990,1723061443476,-935.0,0.000245,2]
[334413991,1723061443485,-188.96310647,0.00024543,2]
[334413992,1723061443494,-203.0,0.0002457,2]
[334413993,1723061443504,-999.24,0.000246,2]
[334413994,1723061443513,-999.24,0.000246,2]
[334413995,1723061443522,-574.356648,0.000246,2]
[334413996,1723061443535,-304.5,0.000246,2]
[334413997,1723061443548,-643.0,0.000246,12]
[334413998,1723061443558,-423.733455,0.000246,2]
[334413999,1723061443567,-1116.55,0.000246,2]
[334414000,1723061443576,-188.96310647,0.00024614,2]
[334414001,1723061443586,-500.0,0.00024658,2]
[334414002,1723061443822,-500.0,0.00024658,2]
[334414003,1723061443843,-500.0,0.00024658,2]
[334414004,1723061443852,-500.0,0.00024658,2]
[334414005,1723061443862,-500.0,0.00024658,2]
[334414006,1723061443871,-500.0,0.00024658,2]
[334414007,1723061443880,-188.96310647,0.00024686,2]
[334414008,1723061443890,-935.0,0.0002475,2]
[334414009,1723061443899,-188.96310647,0.00024757,2]
[334414010,1723061443909,-2814.56609034,0.00024789,5]
[334414011,1723061443918,-109768.077523,0.0002479,5]
[334414012,1723061443928,-151.21,0.0002479,2]
[334414013,1723061443938,-500.0,0.00024799,5]
[334414014,1723061443947,-177109.7401,0.000248,2]
[334414015,1723061443957,-183.75086321,0.000248,2]
[334414016,1723061443966,-153.68776239,0.000248,2]
[334414017,1723061443976,-150.0,0.00024802,2]
[334414018,1723061443986,-188.96310647,0.00024829,2]
[334414019,1723061443995,-183.75086321,0.00024833,2]
[334414020,1723061444005,-183.75086321,0.00024867,2]
[334414021,1723061444014,-151.21,0.0002488,2]
[334414022,1723061444023,-7500.0,0.0002488,2]
[334414023,1723061444042,-27950.10517853,0.0002489,5]
[334414024,1723061444055,-134.03562887,0.0002489,5]
[334414025,1723061444064,-250.71999573,0.0002489,2]
[334414026,1723061444074,-500.0,0.00024899,2]
[334414027,1723061444083,-153.6560117,0.00024899,2]
[334414028,1723061444092,-500.0,0.00024899,2]
[334414029,1723061444102,-3000.0,0.000249,2]
[334414030,1723061444111,-6841.5062,0.000249,2]
[334414031,1723061444121,-1000.0,0.000249,2]
[334414032,1723061444131,-44211.35487947,0.000249,2]
[334414033,1723061444142,-12477.20885327,0.000249,2]
[334414034,1723061444154,-43311.43626726,0.000249,2]
[334414035,1723061444163,-1077.654,0.000249,2]
[334414036,1723061444173,-449.5209,0.000249,2]
[334414037,1723061444183,-176.76776976,0.000249,2]
[334414038,1723061444192,-203.1549,0.000249,2]
[334414039,1723061444201,-708.28,0.000249,31]
[334414040,1723061444210,-708.28,0.000249,31]
[334414041,1723061444220,-708.28,0.000249,31]
[334414042,1723061444229,-708.28,0.000249,31]
[334414043,1723061444239,-708.28,0.000249,31]
[334414044,1723061444248,-708.28,0.000249,31]
[334414045,1723061444257,-708.28,0.000249,31]
[334414046,1723061444267,-708.28,0.000249,31]
[334414047,1723061444277,-708.28,0.000249,31]
[334414048,1723061444293,-708.28,0.000249,31]
[334414049,1723061444303,-708.28,0.000249,31]
[334414050,1723061444312,-708.28,0.000249,31]
[334414051,1723061444322,-708.28,0.000249,31]
[334414052,1723061444331,-708.28,0.000249,31]
[334414053,1723061444340,-708.28,0.000249,31]
[334414054,1723061444350,-708.28,0.000249,31]
[334414055,1723061444359,-708.28,0.000249,31]
[334414056,1723061444368,-708.28,0.000249,31]
[334414057,1723061444378,-708.28,0.000249,31]
[334414058,1723061444388,-708.28,0.000249,31]
[334414059,1723061444399,-234.41598614,0.000249,2]
[334414060,1723061444408,-493.00953796,0.000249,2]
[334414061,1723061444419,-183.75086321,0.000249,2]
[334414062,1723061444428,-189.55387215,0.000249,2]
[334414063,1723061444438,-188.96310647,0.000249,2]
[334414064,1723061444448,-9361.38026913,0.0002497,5]
[334414065,1723061444457,-9361.38026913,0.00024979,5]
[334414066,1723061444467,-151.21,0.00024979,2]
[334414067,1723061444477,-9361.38026913,0.0002498,5]
[334414068,1723061444486,-151.21,0.0002498,2]
[334414069,1723061444496,-150.71639531,0.00024986,4]
[334414070,1723061444505,-251.99532751,0.00024986,4]
[334414071,1723061444515,-500.0,0.00024988,5]
[334414072,1723061444527,-5557.92791428,0.00024989,5]
[334414073,1723061444543,-9730.13136192,0.00024989,5]
[334414074,1723061444557,-13253.22423378,0.00024989,5]
[334414075,1723061444568,-36988.37837392,0.00024989,5]
[334414076,1723061444577,-11009.46067291,0.0002499,5]
[334414077,1723061444590,-7713.29986539,0.0002499,5]
[334414078,1723061444600,-151.21,0.0002499,2]
[334414079,1723061444610,-829.0,0.0002499,2]
[334414080,1723061444621,-1790.7891202,0.0002499,5]
[334414081,1723061444634,-20492.59590905,0.0002499,5]
[334414082,1723061444648,-823.08195931,0.0002499,5]
[334414083,1723061444659,-643.71140223,0.0002499,5]
[334414084,1723061444670,-72472.8766508,0.0002499,5]
[334414085,1723061444683,-530.36582243,0.0002499,5]
[334414086,1723061444694,-953.70061537,0.0002499,5]
[334414088,1723061445525,-328.32741597,0.0002499,5]
[334414089,1723061445540,-293.75433028,0.0002499,5]
[334414090,1723061445551,-3165.81931308,0.0002499,5]
[334414091,1723061445563,-1012.97035628,0.0002499,5]
[334414092,1723061445575,-10212.33596442,0.0002499,5]
[334414095,1723061445863,-1804.04704411,0.000249,2]
[334414096,1723061445875,-602.23,0.000249,2]
[334414097,1723061445889,-7685.47211982,0.000249,2]
[334414098,1723061445899,-14145.65562262,0.0002499,5]
[334414099,1723061445919,-549.99,0.0002499,5]
[334414100,1723061445931,-3021.81697646,0.0002499,5]
[334414101,1723061446078,-1045.05355188,0.0002499,5]
[334414332,1723061600532,1000.0,0.00025,60]
[334414334,1723062308248,10900.0,0.00011,2]
[334414350,1723062633100,-256.10858554,0.000109,2]
[334414351,1723062633111,-224.261,0.000109,2]
[334414352,1723062633121,-2820.39265931,0.000109,2]
[334414353,1723062633131,-500.0,0.00010999,2]
[334414354,1723062633142,-307.55920819,0.00010999,2]
[334414355,1723062633157,-320.74577537,0.00010999,2]
[334414356,1723062633168,-178.95286172,0.00010999,2]
[334414357,1723062633178,-2022.15408939,0.00011,2]
[334414358,1723062633198,-2640.43508731,0.00011,2]
[334414359,1723062633211,-15067.79146612,0.00011,2]
[334414360,1723062633229,-621.31781712,0.00011,2]
[334414361,1723062633286,-5524.47480946,0.00011,2]
[334414362,1723062633300,-251.03914311,0.00011,2]
[334414363,1723062633312,-2502.97504607,0.00011,2]
[334414364,1723062633322,-5882.63960791,0.00011,2]
[334414365,1723062633348,-811.69217936,0.00011,2]
[334414373,1723062637916,-1207.55664795,0.00011,2]
[334414374,1723062637927,-1785.81394497,0.00011,2]
[334414375,1723062638036,-498.35828287,0.00011,2]
[334414376,1723062638047,-1129.87977792,0.00011,2]
[334414377,1723062638103,-322.30859516,0.00011,2]
[334414378,1723062638164,-821.23282652,0.00011,2]
[334414379,1723062638175,-2730.40354718,0.00011,2]
[334414380,1723062638222,-2033.01980657,0.00011,2]
[334414398,1723062639920,-762.0904877,0.00011,2]
[334414400,1723062641646,-546.97929801,0.00011,2]
[334414401,1723062641659,-32891.00826397,0.00011,2]
[334414402,1723062641702,-1720.07733724,0.00011,2]
[334414403,1723062641763,-618.07498666,0.00011,2]
[334414404,1723062641779,-21256.29782865,0.00011,2]
[334414405,1723062641792,-1999.524,0.00011,2]
[334414406,1723062641821,-718.15496129,0.00011,2]
[334414407,1723062641833,-41374.91738175,0.00011,2]
[334414446,1723062643695,-72472.8766508,0.00011,2]
[334414448,1723062643706,-25644.70472404,0.00011,2]
[334414450,1723062643718,-327.12129972,0.00011,2]
[334414452,1723062643733,-1663.47158613,0.00011,2]
[334414481,1723062646059,-521.20184298,0.00011,2]
[334414482,1723062646071,-514.146648,0.00011,2]
[334414483,1723062646117,-520.38152683,0.00011,2]
[334414484,1723062646128,-4008.75786803,0.00011,2]
[334414485,1723062646178,-8414.37793938,0.00011,2]
[334414486,1723062646190,-292.84,0.00011,2]
[334414487,1723062646247,-350000.0,0.00011,2]
[334414488,1723062646258,-386.96442793,0.00011,2]
[334414489,1723062646269,-435.93874686,0.00011,2]
[334414490,1723062646288,-608.68038004,0.00011,2]
[334414491,1723062646300,-967.178,0.00011,2]
[334414492,1723062646311,-1479.41949306,0.00011,2]
[334414493,1723062646322,-3795.64476265,0.00011,2]
[334414494,1723062646334,-1102.43613394,0.00011,2]
[334414496,1723063663937,289.16,9.218e-05,2]
[334414504,1723063791343,167.423522,0.00025,60]
[334414505,1723063795320,167.423522,0.00025,60]
[334414506,1723063797696,167.423522,0.00025,60]
[334414507,1723063799858,167.423522,0.00025,60]
[334414508,1723063805927,167.42351984,0.00025,60]
[334414519,1723063832882,-150.0,9.888e-05,2]
[334414520,1723063832892,-400.0,0.000102,3]
[334414521,1723063832901,-800.0,0.000103,3]
[334414522,1723063832911,-1200.0,0.000104,3]
[334414523,1723063832921,-1600.0,0.000105,3]
[334414524,1723063832930,-1828.00544712,0.000106,3]
[334414525,1723063832942,-171.99455288,0.000106,3]
[334414526,1723063832952,-400.0,0.000107,3]
[334414527,1723063832961,-150.0,0.00010767,2]
[334414528,1723063832971,-400.0,0.000108,3]
[334414529,1723063832981,-499.99,0.00010899,2]
[334414530,1723063832991,-300.0,0.00010899,2]
[334414531,1723063833000,-300.0,0.00010899,2]
[334414532,1723063833009,-820.76599076,0.00010899,2]
[334414533,1723063833025,-2880.4041092,0.00010899,2]
[334414534,1723063833037,-484.92778722,0.00010899,2]
[334414535,1723063833053,-1594.26211282,0.00010899,2]
[334414536,1723063833062,-533.64788718,0.000109,2]
[334414537,1723063833073,-364.67036088,0.000109,2]
[334414538,1723063833084,-270.145,0.000109,2]
[334414539,1723063833112,-5197.81675194,0.000109,2]
[334414540,1723063833122,-499.99,0.000109,2]
[334414541,1723063833132,-150.99,0.000109,2]
[334414542,1723063833141,-150.99,0.000109,2]
[334414543,1723063833151,-1011.46182893,0.000109,2]
[334414544,1723063833163,-1239.39805608,0.000109,2]
[334414578,1723063838508,-653.95291499,0.000109,2]
[334414579,1723063838518,-400.0,0.000109,3]
[334414580,1723063838527,-200.92798812,0.000109,2]
[334414581,1723063838536,-1057.9973,0.000109,2]
[334414582,1723063838551,-458.27831503,0.000109,2]
[334414583,1723063838561,-270.82770935,0.00010986,2]
[334414584,1723063838571,-150.0,0.0001099,2]
[334414585,1723063838581,-250.0,0.0001099,2]
[334414586,1723063838591,-828.3,0.00010999,2]
[334414587,1723063838603,-15361.58950679,0.00011,2]
[334414588,1723063838613,-628444.13829218,0.00011,2]
[334414589,1723063838624,-21771.39190225,0.00011,2]
[334414590,1723063838638,-1367.929395,0.00011,2]
[334414591,1723063838648,-4888.27761967,0.00011,2]
[334414618,1723063840649,-340150.47905522,0.00011,2]
[334414619,1723063840663,-1890.80247946,0.00011,2]
[334414620,1723063840674,-369.17561985,0.00011,2]
[334414621,1723063840686,-550.85,0.00011,2]
[334414622,1723063840698,-2246.57009529,0.00011,2]
[334414688,1723063843760,-620.90330652,0.00011,2]
[334414690,1723063843771,-105142.54175216,0.00011,2]
[334414692,1723063843782,-1181.45,0.00011,2]
[334414694,1723063843794,-276.355,0.00011,2]
[334414695,1723063843809,-1110.57150528,0.00011,2]
[334414696,1723063843819,-1387.61799971,0.00011,2]
[334414708,1723063846302,-288.21641607,0.00011,2]
[334414709,1723063998385,500.0,0.00024932,120]
[334414710,1723064756579,500.0,0.00025,60]
[334414734,1723065033185,-290.05974808,9.788e-05,2]
[334414735,1723065033194,-174.86067,0.0001089,2]
[334414736,1723065033203,-1929.2724,0.000109,2]
[334414737,1723065033212,-172.2239898,0.000109,2]
[334414738,1723065033221,-300.0,0.00010958,2]
[334414739,1723065033230,-186.12,0.00010959,2]
[334414740,1723065033240,-155.1,0.00010959,2]
[334414741,1723065033250,-775.53,0.00010959,2]
[334414742,1723065033260,-6886.90978963,0.0001099,2]
[334414743,1723065033270,-168.05434721,0.00010997,2]
[334414744,1723065033280,-10443.03215812,0.00011,2]
[334414745,1723065033290,-54845.04032635,0.00011,2]
[334414746,1723065033302,-1645.7535,0.00011,2]
[334414747,1723065033315,-4028.34542683,0.00011,2]
[334414748,1723065033326,-2066.72528739,0.00011,2]
[334414749,1723065033368,-1256.6156,0.00011,2]
[334414750,1723065033380,-13654.40578453,0.00011,2]
[334414751,1723065033392,-2818.399724,0.00011,2]
[334414752,1723065033430,-8610.4235858,0.00011,2]
[334414753,1723065033442,-266.95294903,0.00011,2]
[334414754,1723065033454,-540.14675871,0.00011,2]
[334414757,1723065038569,-568.94985213,0.00011,2]
[334414758,1723065038581,-453.30570109,0.00011,2]
[334414759,1723065038593,-1716.77837451,0.00011,2]
[334414760,1723065038605,-2919.9,0.00011,2]
[334414761,1723065038618,-4319.68984599,0.00011,2]
[334414762,1723065038631,-1780.0858619,0.00011,2]
[334414763,1723065038643,-3070.36406539,0.00011,2]
[334414764,1723065038655,-570.55999995,0.00011,2]
[334414765,1723065038800,-55234.00000004,0.00011,2]
[334415193,1723065042841,-1603.97968,0.00011,2]
[334415200,1723065042898,-663249.01623581,0.00011,2]
[334415206,1723065043121,-3324.9106377,0.00011,2]
[334415208,1723065043133,-568.20105146,0.00011,2]
[334415211,1723065043147,-423064.411,0.00011,2]
[334415215,1723065043187,-39212.85223734,0.00011,2]
[334415217,1723065043199,-254.25,0.00011,2]
[334415279,1723065044263,-632.52348141,0.00011,2]
[334415280,1723065044275,-9022.73171167,0.00011,2]
[334415281,1723065044321,-72472.8766508,0.00011,2]
[334415282,1723065044332,-3681.55137497,0.00011,2]
[334415283,1723065044343,-494.33920324,0.00011,2]
[334415284,1723065044354,-1593.04992965,0.00011,2]
[334415285,1723065044367,-1625.7938459,0.00011,2]
[334415286,1723065044378,-296.18044634,0.00011,2]
[334415287,1723065044391,-24935.22661887,0.00011,2]
[334415288,1723065044402,-735.84618587,0.00011,2]
[334415291,1723065046534,-278.00186451,0.00011,2]
[334415292,1723065046647,-5506.0,0.00011,2]
[334415293,1723065046821,-3095.56445462,0.00011,2]
[334415294,1723065046833,-1064.7,0.00011,2]
[334415323,1723065559129,4561.5326938,0.00013,30]
[334415324,1723065559154,8285.37909802,0.00013,30]
[334415340,1723065824190,355.06,8.95e-05,2]
[334415346,1723066161359,-385.0,9.687e-05,2]
[334415347,1723066161386,-303.3037382,9.687e-05,2]
[334415348,1723066161413,-1321.18370276,9.688e-05,2]
[334415362,1723066231573,-210.85069151,0.0001,2]
[334415363,1723066231583,-340.44219352,0.00010617,2]
[334415364,1723066231595,-269.0000005,0.00010617,2]
[334415365,1723066231606,-582.92504737,0.00010617,2]
[334415366,1723066231618,-2229.30473436,0.00010617,2]
[334415367,1723066231662,-1060.60442425,0.00010617,2]
[334415368,1723066231672,-211.38,0.00010677,2]
[334415369,1723066231682,-250.0,0.00010678,2]
[334415370,1723066231692,-1918.0885203,0.00010717,2]
[334415371,1723066231702,-1231.85132041,0.00010717,2]
[334415372,1723066231713,-311.84172578,0.00010717,2]
[334415373,1723066231726,-833.36001832,0.00010717,2]
[334415374,1723066231738,-696.93784984,0.00010717,2]
[334415375,1723066231750,-315.29707946,0.00010717,2]
[334415376,1723066231765,-415.09721781,0.00010717,2]
[334415377,1723066231777,-308.807424,0.00010717,2]
[334415378,1723066231789,-2323.0117673,0.00010717,2]
[334415379,1723066231801,-719.56763967,0.00010717,2]
[334415380,1723066231814,-2852.80510775,0.00010717,2]
[334415421,1723066237971,-568.17462,0.00010717,2]
[334415422,1723066237983,-11405.15970936,0.00010717,2]
[334415423,1723066237993,-600.0,0.00010809,2]
[334415424,1723066238003,-3492.2298,0.000109,2]
[334415425,1723066238012,-210.3427,0.000109,2]
[334415426,1723066238022,-318.42,0.000109,2]
[334415427,1723066238032,-222.9761057,0.000109,2]
[334415428,1723066238041,-172.22398976,0.000109,2]
[334415429,1723066238053,-172.1303994,0.000109,2]
[334415430,1723066238063,-499.5,0.00010919,2]
[334415431,1723066238072,-172.89,0.00010919,2]
[334415432,1723066238082,-499.99,0.00010919,2]
[334415433,1723066238091,-150.0,0.00010959,2]
[334415434,1723066238101,-1500.0,0.00010959,5]
[334415435,1723066238111,-250.0,0.00010965,2]
[334415436,1723066238120,-150.0,0.00010989,2]
[334415437,1723066238129,-10450.95956996,0.0001099,2]
[334415438,1723066238139,-499.99,0.0001099,2]
[334415439,1723066238148,-24233.1877258,0.00010999,2]
[334415440,1723066238163,-658.98348,0.00010999,2]
[334415446,1723066242219,-3664.9365767,0.00010999,2]
[334415447,1723066242232,-100408.6109044,0.00010999,2]
[334415448,1723066242242,-500.0,0.00010999,2]
[334415449,1723066242252,-286.83781408,0.00010999,2]
[334415450,1723066242261,-500.0,0.00010999,2]
[334415451,1723066242271,-500.0,0.00010999,2]
[334415452,1723066242281,-330.74415823,0.00010999,2]
[334415453,1723066242290,-500.0,0.00010999,2]
[334415455,1723066242306,-183.69049875,0.00010999,2]
[334415456,1723066242315,-178.58334912,0.00010999,2]
[334415457,1723066242325,-820.77,0.00010999,2]
[334415458,1723066242335,-1694.62,0.00011,2]
[334415459,1723066242347,-9999.99,0.00011,2]
[334415460,1723066242356,-150.99,0.00011,2]
[334415462,1723066242366,-282.37,0.00011,2]
[334415463,1723066242377,-5221.51607907,0.00011,2]
[334415464,1723066242387,-679523.30619635,0.00011,2]
[334415465,1723066242400,-316.06940488,0.00011,2]
[334415466,1723066242411,-1617.3920438,0.00011,2]
[334415467,1723066242422,-4739119.32096172,0.00011,2]
[334415468,1723066242434,-4710.0,0.00011,2]
[334415469,1723066242445,-651.2,0.00011,2]
[334415470,1723066242458,-345.0,0.00011,2]
[334415471,1723066242471,-1908.71029907,0.00011,2]
[334415472,1723066242483,-22140.40455578,0.00011,2]
[334415473,1723066242495,-1479.70572838,0.00011,2]
[334415493,1723066242735,-605.05070353,0.00011,2]
[334415495,1723066242754,-72472.8766508,0.00011,2]
[334415496,1723066242772,-20567.67826085,0.00011,2]
[334415497,1723066242919,-581.57621003,0.00011,2]
[334415500,1723066242940,-655.01729601,0.00011,2]
[334415555,1723066245764,-2703.43363434,0.00011,2]
[334415556,1723066245855,-553.0098,0.00011,2]
[334415557,1723066245867,-11628.81796682,0.00011,2]
[334415558,1723066245879,-2906.96696339,0.00011,2]
[334415559,1723066245890,-6316.88516173,0.00011,2]
[334415560,1723066245901,-12620.49826906,0.00011,2]
[334415574,1723066355939,378.27,8.742e-05,2]
[334415586,1723066568114,700.0,0.00025,60]
[334415594,1723066860737,170.17,9.529e-05,2]
[334415595,1723066862623,359.35,8.219e-05,2]
[334415597,1723066940886,480.0,9.521e-05,2]
[334415598,1723067001271,250.0,9.524e-05,2]
[334415599,1723067013687,12424.06,9.523e-05,2]
[334415611,1723067308900,492.34,9.485e-05,2]
[334415614,1723067324939,4021.41,9.504e-05,2]
[334415615,1723067335090,362.55,8.219e-05,2]
[334415620,1723067433359,-3119.70333999,9.962e-05,2]
[334415621,1723067433369,-522.06611583,9.962e-05,2]
[334415622,1723067433379,-921.16736327,9.962e-05,2]
[334415623,1723067433388,-310.0,9.962e-05,2]
[334415624,1723067433399,-193.75,9.999e-05,2]
[334415625,1723067433409,-500.0,0.000102,3]